Cogmind - Beta 14 @@@ ROGUE MODE // 2024.08.13 @ 21:00:17 Player: Cereal Killer Result: Destroyed by 76-RC2(R) with Subdweller Laser Performance ------------- Evolutions (0) 0 Regions Visited (2) 400 Robots Destroyed (23) 115 Value Destroyed (584) 584 Prototype IDs (2) 40 Alien Tech Used (0) 0 Bonus (0) 0 TOTAL SCORE: 1139 Bonus ------- None Cogmind --------- Core Integrity 0/250 Matter 244/300 Energy 250/250 System Corruption 0% Temperature Cool (6) Movement Rolling (120) Ox1 Location -10/Subcaves Parts ------- > --- POWER (1) -------- Ion Engine > --- PROPULSION (2) --- Subdweller Monowheel Subdweller Monowheel > --- UTILITY (2) ------ High-capacity Storage Unit Improved Terrain Scanner > --- WEAPON (2) ------- Subdweller Machine Gun Light Cannon > --- INVENTORY (20) --- Ion Engine Subdweller Power Source Makeshift Power Source Makeshift Power Source Spiked Treads Wheel Compact Wheel Disposable Heat Sink Medium Matter Pod (100) Medium Matter Pod (100) Subdweller Optics Seismic Detector Scrap Shield Medium Laser Medium Laser Mining Laser Peak State ------------ > --- POWER ------------ Ion Engine > --- PROPULSION ------- Spiked Treads Subdweller Monowheel > --- UTILITY ---------- High-capacity Storage Unit Improved Terrain Scanner > --- WEAPON ----------- Medium Laser Subdweller Machine Gun > --- INVENTORY -------- Ion Engine Ion Engine Subdweller Power Source Makeshift Power Source Makeshift Power Source Wheel Compact Wheel Subdweller Monowheel Disposable Heat Sink Medium Matter Pod Medium Matter Pod Subdweller Optics Seismic Detector Scrap Shield Medium Laser Light Cannon Mining Laser [Rating: 15] Favorites ----------- Power Ion Engine Engine Ion Engine Propulsion Subdweller Monowheel Treads Spiked Treads Wheel Subdweller Monowheel Utility High-capacity Storage Unit Device Improved Terrain Scanner Storage High-capacity Storage Unit Protection Light Armor Plating Weapon Medium Laser Energy Gun Medium Laser Ballistic Gun Subdweller Machine Gun Ballistic Cannon Light Cannon Special Weapon Mining Laser Build | -11 -10 -10 ------- Run | Yrd Mat Sub Slots Evolved . | . . . Power . | . . . Propulsion . | . . . Utility . | . . . Weapon . | . . . Parts Attached 27 | 7 7 13 Power 3 | 1 1 1 Engine 3 | 1 1 1 Core . | . . . Reactor . | . . . Propulsion 10 | 2 2 6 Treads 2 | . . 2 Leg . | . . . Wheel 8 | 2 2 4 Hover . | . . . Flight . | . . . Utility 7 | 2 1 4 Device 2 | 1 . 1 Storage 3 | 1 1 1 Processor . | . . . Hackware . | . . . Protection 2 | . . 2 Artifact . | . . . Weapon 7 | 2 3 2 Energy Gun 3 | 1 2 . Energy Cannon . | . . . Ballistic Gun 2 | 1 . 1 Ballistic Cannon 1 | . . 1 Launcher . | . . . Special Weapon 1 | . 1 . Impact Weapon . | . . . Slashing Weapon . | . . . Piercing Weapon . | . . . Special Melee Weapon . | . . . Unidentified Prototypes . | . . . Parts Lost 4 | . 1 3 Power . | . . . Propulsion 2 | . 1 1 Utility 1 | . . 1 Weapon 1 | . . 1 Highest Loss Streak 2 | . 1 2 To Critical Strikes . | . . . Average Slot Usage (%) 98 | . 99 98 Engine 14 | . 14 14 Treads 8 | . . 10 Wheel 19 | . 27 17 Device 12 | . 14 11 Storage 13 | . 14 13 Protection 1 | . . 1 Energy Gun 9 | . 13 8 Ballistic Gun 14 | . 14 14 Ballistic Cannon 4 | . . 5 Peak Build Rating 15 | 9 11 15 Average Rating 12 | 4 10 13 On Entrance 6 | . 9 11 Naked Turns . | . . . Heaviest Build 54 | 15 50 54 Greatest Support 40 | 32 32 40 Greatest Overweight (x) 3 | . 2 3 Average Overweight (x) 1 | . . 1 Largest Inventory Capacity 20 | 8 20 20 Average Capacity 19 | 7 19 19 Most Carried 20 | 8 20 20 Average Carried 16 | 3 15 17 Final Capacity 20 | 8 20 20 Final Carried 20 | 7 20 17 Class Distribution -------------------- 67% | Mutant 29% | Scavenger-Mutant Dominant Class ---------------- Mutant | -10/Materials Mutant | -10/Subcaves Resources | -11 -10 -10 ----------- Run | Yrd Mat Sub Matter Collected 866 | 240 376 250 Remotely . | . . . Salvage Created 769 | 29 475 265 Parts 64 | 4 41 19 Haulers Intercepted . | . . . Recyclers Shooed . | . . . Parts Field Recycled . | . . . Retrieved Matter . | . . . Parts Self-Destructed 7 | . . 7 Prevented . | . . . Kills | -11 -10 -10 ------- Run | Yrd Mat Sub Combat Hostiles Destroyed 17 | . 10 7 Guns 17 | . 10 7 Classes Destroyed 9 | 1 6 2 Worker 1 | . 1 . Tunneler 2 | 1 1 . Recycler 1 | . 1 . Operator 1 | . 1 . Watcher 1 | . 1 . Swarmer 4 | . 3 1 Grunt 10 | . 7 3 Sentry 1 | . . 1 Subdweller 2 | . . 2 Best Kill Streak 6 | 1 6 2 Combat Bots Only 5 | . 5 2 Max Kills in Single Turn 2 | 1 2 1 Gunslinging 1 | . 1 . Exploded . | . . . Melee . | . . . Uniques/NPCs Destroyed . | . . . Combat | -11 -10 -10 -------- Run | Yrd Mat Sub Hostile Shots Fired 96 | . 41 55 Missed 31 | . 14 17 Damage Taken 912 | . 257 655 Core 254 | . 79 175 Absorbed by Shields . | . . . Core Remaining (%) 100 | 100 . . Volleys Fired 71 | 1 35 35 Largest 2 | 2 2 2 Hottest 100 | 70 100 80 Shots Fired 140 | 2 68 70 Gun 132 | 2 66 64 Cannon 6 | . . 6 Launcher . | . . . Special 2 | . 2 . Kinetic 75 | 1 33 41 Thermal 65 | 1 35 29 Explosive . | . . . Electromagnetic . | . . . Robot Hit Streak 17 | 1 15 17 Robot Miss Streak 4 | 1 4 2 Penetration Max . | . . . Secondary Targets 2 | . 2 . Max Gunslinging Chain 1 | . 1 . Shots Hit Robots 89 | 1 50 38 Core Hits 41 | 1 26 14 Critical Kills . | . . . Critical Parts Destroyed . | . . . Critical Strikes 5 | . 4 1 Burn 5 | . 4 1 Melee Attacks . | . . . Impact . | . . . Slashing . | . . . Piercing . | . . . Sneak Attacks . | . . . Combat Hostiles . | . . . Follow-up Attacks . | . . . Damage Inflicted 1226 | 12 622 592 Guns 1226 | 12 622 592 Cannons . | . . . Explosions . | . . . Melee . | . . . Ramming . | . . . Kinetic 614 | 12 274 328 Thermal 612 | . 348 264 Explosive . | . . . Electromagnetic . | . . . Impact . | . . . Slashing . | . . . Piercing . | . . . Highest Corruption . | . . . Average Corruption . | . . . Corruption Purged . | . . . Corruption Blocked . | . . . Overload Shots . | . . . Overflow Damage . | . . . Projectiles . | . . . Explosions . | . . . Melee . | . . . Knockbacks . | . . . Impact . | . . . Kinetic . | . . . Secondary . | . . . Self-Inflicted Damage . | . . . Shots . | . . . Rammed . | . . . Targets Rammed . | . . . Kicked . | . . . Crushed . | . . . Highest Temperature 96 | 9 96 1 Average Temperature 21 | 6 21 1 Received Heat Transfer 243 | . 78 165 Siege Activations . | . . . Robots Corrupted . | . . . Combat Hostiles . | . . . Parts Fried . | . . . Impact Corruptions . | . . . Robots Melted . | . . . Combat Hostiles . | . . . Parts Melted 2 | . 2 . Heat Transferred 2183 | . 1332 851 Parts Sabotaged . | . . . Parts Stolen . | . . . Parts Stripped . | . . . Power Chain Reactions . | . . . Alert | -11 -10 -10 ------- Run | Yrd Mat Sub Peak Influence 252 | 5 252 . Initial 3 | . 3 . Average 92 | . 105 . Maximum Alert Level 1 | . 1 . Low Security (%) 94 | 100 93 . Level 1 5 | . 6 . Level 2 . | . . . Level 3 . | . . . Level 4 . | . . . Level 5 . | . . . High Security . | . . . Max Security . | . . . Squads Dispatched 3 | . 3 . Investigation 2 | . 2 . Extermination . | . . . Reinforcement 1 | . 1 . Assault . | . . . Garrison . | . . . Intercept . | . . . Searches Triggered . | . . . Construction Impeded . | . . . Haulers Reinforced . | . . . Active Scanning Responses . | . . . Cargo Convoy Interrupts . | . . . Stealth | -11 -10 -10 --------- Run | Yrd Mat Sub Distress Signals 1 | . 1 . Communications Jammed . | . . . Distress Signals . | . . . Times Spotted 30 | . 20 10 Peak Tracking Total 6 | . 6 3 Tactical Retreats 1 | . 1 . Traps | -11 -10 -10 ------- Run | Yrd Mat Sub Traps Triggered 2 | . 1 1 Indirectly . | . . . Trap Hack Attempts . | . . . Triggered . | . . . Disarmed . | . . . Reprogrammed . | . . . Reused . | . . . Traps Extracted . | . . . Installed . | . . . Triggered . | . . . Machines | -11 -10 -10 ---------- Run | Yrd Mat Sub Machines Disabled . | . . . Max in Single Turn . | . . . Machines Repaired . | . . . Machines Dismantled . | . . . Machines Sabotaged . | . . . Overloaded Fab Kills . | . . . Hacking | -11 -10 -10 --------- Run | Yrd Mat Sub Machines Accessed 5 | . 5 . Terminals 4 | . 4 . Fabricators . | . . . Repair Stations . | . . . Recycling Units 1 | . 1 . Scanalyzers . | . . . Garrison Access . | . . . Total Hacks 13 | . 13 . Successful 5 | . 5 . Failed 8 | . 8 . Catastrophic 2 | . 2 . Database Lockouts . | . . . Manual 7 | . 7 . Terminals 11 | . 11 . Fabricators . | . . . Repair Stations . | . . . Recycling Units 2 | . 2 . Scanalyzers . | . . . Garrison Access . | . . . Terminal Hacks 3 | . 3 . Prototype ID Bank 1 | . 1 . Branch Access Points 1 | . 1 . Zone Layout 1 | . 1 . Fabricator Hacks . | . . . Repair Station Hacks . | . . . Recycling Unit Hacks . | . . . Scanalyzer . | . . . Garrison Access Hacks . | . . . Unauthorized Hacks 2 | . 2 . Terminals 1 | . 1 . Botnet 1 | . 1 . Fabricators . | . . . Repair Stations . | . . . Recycling Units 1 | . 1 . Tunnel 1 | . 1 . Scanalyzers . | . . . Garrison Access . | . . . Data Cores Recovered . | . . . Used . | . . . Hacking Detections 5 | . 5 . Full Trace Events 1 | . 1 . Feedback Events . | . . . Feedback Blocked . | . . . Robot Schematics Acquired . | . . . Robots Built . | . . . Authchips . | . . . Time . | . . . Total Robot Build Rating . | . . . Part Schematics Acquired . | . . . Parts Built . | . . . Authchips . | . . . Time . | . . . Total Part Build Rating . | . . . Parts Repaired . | . . . Time . | . . . Parts Recycled . | . . . Recycled Matter . | . . . Retrieved Matter . | . . . Retrieved Components . | . . . Parts Scanalyzed . | . . . Part Schematics Acquired . | . . . Parts Damaged . | . . . Bothacking | -11 -10 -10 ------------ Run | Yrd Mat Sub Used RIF Installer . | . . . Robots Hacked . | . . . Non-combat . | . . . Combat . | . . . Robot Hacks Applied . | . . . Relay Couplers Released . | . . . Fabnet Peak Effective % . | . . . Robots Rewired . | . . . Allies Hacked . | . . . Hacks Repelled . | . . . Allies | -11 -10 -10 -------- Run | Yrd Mat Sub Total Allies . | . . . Largest Group . | . . . Highest-Rated Group . | . . . Highest-Rated Ally . | . . . Total Orders . | . . . Ally Attacks . | . . . Total Damage . | . . . Kills . | . . . Allies Corrupted . | . . . Allies Melted . | . . . Intel | -11 -10 -10 ------- Run | Yrd Mat Sub Robot Analysis Total . | . . . Derelict Logs Recovered 2 | . . 2 Drone Launches . | . . . Drone Recoveries . | . . . Exploration | -11 -10 -10 ------------- Run | Yrd Mat Sub Turns Passed 2218 | 74 521 1623 Spaces Moved 1012 | 54 331 627 Core 6 | 6 . . Treads 303 | . . 303 Legs . | . . . Wheels 703 | 48 331 324 Hover . | . . . Flight . | . . . Fastest Speed 50 | 50 100 105 Average Speed 183 | 94 109 229 Slowest Speed 360 | 100 130 360 Overloaded Moves . | . . . Propulsion Burnouts . | . . . Robots Hopped . | . . . Cave-ins Triggered . | . . . Exploration Rate (%) 29 | 3 48 37 Regions Visited 2 Branch Regions 1 Pre-discovered Areas 1 | . 1 . Known Exits Taken . | . . . Unknown Exits Taken 2 | 1 1 . Scrap Searched 1 | . . 1 Spaces Dug . | . . . Terrain Destroyed . | . . . Melee . | . . . Projectile . | . . . AOE . | . . . Terrain Rammed . | . . . Walls Destroyed . | . . . Machines Disabled . | . . . Actions | -11 -10 -10 --------- Run | Yrd Mat Sub Total 1237 | 75 417 745 Wait 47 | . 25 22 Move 1010 | 53 330 627 Hop . | . . . Pick Up 59 | 14 18 27 Fast Attach 1 | . . 1 Attach 15 | 7 3 5 Detach 1 | . . 1 Swap 11 | . 4 7 Drop 20 | . 2 18 Fire 71 | 1 35 35 Melee . | . . . Ram . | . . . Kick . | . . . Crush . | . . . Escape Stasis . | . . . Rewire . | . . . Trap . | . . . Miscellaneous 2 | . . 2 Route ------- -11/Scrapyard -10/Materials (discovered 2 exits: Min / [*Sub]) -10/Subcaves (discovered 1 exit: [*Mat]) History --------- Turn | Location | Event 19 | -11/Scrapyard | Discovered new exit (range 16) 75 | -11/Scrapyard | Entered Materials 113 | -10/Materials | Identified exit to Mines 316 | -10/Materials | Build established: Mutant 538 | -10/Materials | Discovered new exit (range 5) 596 | -10/Materials | Entered Subcaves 852 | -10/Subcaves | A swath of the cavern ceiling suddenly collapsed 914 | -10/Subcaves | Core integrity fell below 50% 1024 | -10/Subcaves | Core integrity fell below 20% 1464 | -10/Subcaves | Discovered new exit (range 11) 1522 | -10/Subcaves | Learned 4 Materials zone layouts 1845 | -10/Subcaves | Build established: Scavenger-Mutant 2031 | -10/Subcaves | A swath of the cavern ceiling suddenly collapsed 2206 | -10/Subcaves | A Subdweller sparked back to life 2206 | -10/Subcaves | A Subdweller sparked back to life 2206 | -10/Subcaves | A Subdweller sparked back to life 2219 | -10/Subcaves | Destroyed by 76-RC2(R) with Subdweller Laser Last Messages --------------- Acquired Lgt. Cannon. Subatomizers dissect the Aluminum Leg. Acquired 4 matter. Triggered Piercing Trap. Spikes shoot up from the floor. Critical hit (Impale). Subatomizers dissect the Ion Engine. Acquired 6 matter. Subatomizers dissect the Ion Engine. Dropped Ion Engine. Subatomizers dissect the Ion Engine, destroying it. A swath of the cavern ceiling suddenly collapses. HZ-RV4(R) creaks and sparks as it begins to move. B8-CXH(R) creaks and sparks as it begins to move. 76-RC2(R) creaks and sparks as it begins to move. Map ----- +----------------------------------------------------+ | ?????????????????#???????????## ### ##?#?#? | | ????????????????????##??#?##?# # ###??? | | ????????????????????# ???????# #??? | | ???????????????????## ###??#?## #?#??? | | ??????????????????## #????## # &*##????? | | ??????????????????? ##????#### %####??? | | ????????????????????# ##???????# ####?? | | ?????????????????? ## ##??###### #?? | | ????????????????"??# #### ## ### | | ???????????????????? # ## ## | | ??????????"??????????# | | ????????????????????## ### ##### ## | | ??????????????????#?# ####???## ## | | ????????????????????### ### #???#?### | | ????????#?????????#??## ### #??????## | | ?????????????#?#??????## # #?????## ## | | ????????????????#?#??#?###"#### #?#?#?# ## | | ????????????????#?#??###""###??# # ???# | | ?????????#????????#???###""#??#? | | ?????????#????????#???#"""##???? ## | | ??????????????#?##????##""#?#? ? ##?## | | ????????????????#?????#"####?????#########??# ## | | ???????????#??#?#????###"""#?#?##????###????# | | ??????????#???#?##?????###"###???##???????# | | ???????????#?????#????##;## ##?#?????#????# ## | | ??????????????#####???#;;@ ###????#????##### ??# | | ?????????????## " ?#?### ###???#???#?#????# ??? | | ?????????#????#& ???###;##?##????#??#????## # | | ??????????????# " ??#" ##???????????#??????# | | ??????????????# #?##;#?????##????#??###?## | | ???????????????#" " #?#R#????#?#??????#?????## | | ?????????????#????# ##R##???????????????## ##### | | ????????????????#?# ##?#####????????# #?#? | | ??????????????#???# #???#?????????## ??? | | ??????????????#### #??????????????# "" ??? | | ????????????????# ###???????#??#??# ??? | | ????????#?????## #####?##???#????????# "??? | | ????????????#?## ### #???#???????????#????# ### | | ???????????????####??###?????#?#?????????????# ## | | ?????????????#??????##?##????????????#???????# | | ?????????????????#???##?????????????##??#???## # | | ????????????????????????#####??#?????##?#???# # | | ???????????????????#????# ##??#????????????# | | ????????????????#?###???# #??###??#?#?????## | | ??????????????#????????## #?????#?##???????# | | ??????????#????????#????## #?##???#?????##### | | ???????????????????#????## #??#?#??##?????## | | ??????????????##???????## #?????###??#?### | | ???????????????#???#?### #?#??#?????#?## | | ?????????????????????# #????????###??# | +----------------------------------------------------+ Best States ------------- Heat Dissipation 25 Energy Generation 10 Energy Capacity 250 Matter Stores 300 Matter Capacity 300 Sight Range 16 Terrain Scan Range 16 Terrain Scan Density 10 Armor Coverage 800 Evasion (%) 50 Recoil Reduction 1 Item Schematics ----------------- None Robot Schematics ------------------ None Fabricated ------------ Nothing Alien Tech Used ----------------- None Achievements -------------- None Challenges ------------ None Game ------ Seed CoolingMiningNanosword Manual? 0 Play Time 00:16:31 Cumulative 145.7 hours Start 2024.08.13 @ 20:46:23 End 2024.08.13 @ 21:00:17 Sessions 1 Manual Loads 0 Difficulty Rogue Special Mode None Game No. 141 Rogue 132 Adventurer 9 Explorer 0 Win Type - Total 0 Types 0/0/0/0/0/0/0/0/0 Lore% 57 Gallery% 62 Achievement% 49 Wizard Run 0 Options --------- Layout 1 ASCII 0 Keyboard 0 Movement Numpad Keybinds 0 Fullscreen 1 Font 24/Smallcaps Map View 50x35 Zoom Use 0% Tactical HUD 0 Map Filters NONE Filters NONE Steam 1 RUN: 57cb0088-2030-4bcc-831e-a9d2e99633e6